Cogmind - Beta 12 @@@ ROGUE MODE // 2023.03.04 @ 00:12:52 Player: 3.14 Result: Destroyed by D-53 Grenadier with Mini Grenade Launcher Performance ------------- Evolutions (0) 0 Regions Visited (2) 400 Robots Destroyed (16) 80 Value Destroyed (197) 197 Prototype IDs (0) 0 Alien Tech Used (0) 0 Bonus (0) 0 TOTAL SCORE: 677 Bonus ------- None Cogmind --------- Core Integrity 0/250 Matter 170/300 Energy 100/100 System Corruption 0% Temperature Cool (0) Movement Core (50) Location -10/Mines Parts ------- > --- POWER (1) -------- (None) > --- PROPULSION (2) --- (None) > --- UTILITY (2) ------ (None) > --- WEAPON (2) ------- (None) > --- INVENTORY (5) ---- Light Treads Light Treads Experimental Sensor Array Light Assault Rifle Rocket Launcher Peak State ------------ > --- POWER ------------ Ion Engine > --- PROPULSION ------- Aluminum Leg Aluminum Leg > --- UTILITY ---------- Heat Sink Small Storage Unit > --- WEAPON ----------- Assault Rifle Rocket Launcher > --- INVENTORY -------- Ion Engine Light Treads Light Treads Light Treads Aluminum Leg Medium Laser Small Laser Light Assault Rifle [Rating: 8] Favorites ----------- Power Ion Engine Engine Ion Engine Propulsion Aluminum Leg Leg Aluminum Leg Utility Small Storage Unit Device Heat Sink Storage Small Storage Unit Weapon Assault Rifle Energy Gun Medium Laser Ballistic Gun Assault Rifle Launcher Rocket Launcher Build | -11 -10 -10 ------- Run | Jun Mat Min Slots Evolved . | . . . Power . | . . . Propulsion . | . . . Utility . | . . . Weapon . | . . . Parts Attached 10 | . 3 7 Power 2 | . 1 1 Engine 2 | . 1 1 Core . | . . . Reactor . | . . . Propulsion 2 | . . 2 Treads . | . . . Leg 2 | . . 2 Wheel . | . . . Hover . | . . . Flight . | . . . Utility 1 | . 1 . Device 1 | . 1 . Storage . | . . . Processor . | . . . Hackware . | . . . Protection . | . . . Artifact . | . . . Weapon 5 | . 1 4 Energy Gun 2 | . 1 1 Energy Cannon . | . . . Ballistic Gun 1 | . . 1 Ballistic Cannon . | . . . Launcher 2 | . . 2 Special Weapon . | . . . Impact Weapon . | . . . Slashing Weapon . | . . . Piercing Weapon . | . . . Special Melee Weapon . | . . . Unidentified Prototypes . | . . . Parts Lost 2 | . . 2 Power 1 | . . 1 Propulsion . | . . . Utility 1 | . . 1 Weapon . | . . . Highest Loss Streak 2 | . . 2 To Critical Strikes . | . . . Average Slot Usage (%) 94 | . 91 98 Engine 13 | . 14 13 Leg 28 | . 28 28 Device 9 | . 6 13 Storage 14 | . 14 14 Energy Gun 4 | . 6 1 Ballistic Gun 23 | . 21 25 Naked Turns 3 | . . 3 Heaviest Build 17 | 11 15 17 Greatest Support 20 | 20 20 20 Greatest Overweight (x) . | . . . Average Overweight (x) . | . . . Largest Inventory Capacity 8 | . 8 8 Average Capacity 7 | . 8 7 Most Carried 8 | . 8 8 Average Carried 7 | . 7 7 Final Capacity 8 | 8 8 5 Final Carried 8 | 6 8 5 Class Distribution -------------------- 78% | Mutant 21% | Scavenger-Mutant Dominant Class ---------------- Mutant | -10/Materials Mutant | -10/Mines Resources | -11 -10 -10 ----------- Run | Jun Mat Min Matter Collected 305 | 200 78 27 Remotely . | . . . Salvage Created 322 | . 202 120 Parts 30 | . 15 15 Haulers Intercepted 1 | . 1 . Recyclers Shooed 4 | . 1 3 Parts Field Recycled . | . . . Retrieved Matter . | . . . Parts Self-Destructed . | . . . Prevented . | . . . Kills | -11 -10 -10 ------- Run | Jun Mat Min Combat Hostiles Destroyed 9 | . 3 6 Guns 3 | . 3 . AOE 6 | . . 6 Classes Destroyed 6 | . 3 3 Worker 2 | . . 2 Builder 3 | . 1 2 Hauler 1 | . 1 . Recycler 1 | . . 1 Swarmer 6 | . . 6 Grunt 3 | . 3 . Best Kill Streak 11 | . 2 11 Combat Bots Only 6 | . 2 6 Max Kills in Single Turn 3 | . 1 3 Gunslinging . | . . . Exploded 3 | . . 3 Melee . | . . . Uniques/NPCs Destroyed . | . . . Combat | -11 -10 -10 -------- Run | Jun Mat Min Damage Taken 625 | . 89 536 Core 253 | . 34 219 Absorbed by Shields . | . . . Core Remaining (%) 100 | 100 . . Volleys Fired 24 | . 12 12 Largest 2 | . 2 2 Hottest 40 | . 40 40 Shots Fired 41 | . 24 17 Gun 34 | . 24 10 Cannon . | . . . Launcher 7 | . . 7 Special . | . . . Kinetic 34 | . 24 10 Thermal . | . . . Explosive 7 | . . 7 Electromagnetic . | . . . Robot Hit Streak 17 | . 17 4 Robot Miss Streak 2 | . 2 1 Penetration Max . | . . . Secondary Targets . | . . . Shots Hit Robots 28 | . 19 9 Core Hits 21 | . 10 11 Critical Kills . | . . . Critical Parts Destroyed . | . . . Critical Strikes . | . . . Melee Attacks . | . . . Impact . | . . . Slashing . | . . . Piercing . | . . . Sneak Attacks . | . . . Combat Hostiles . | . . . Follow-up Attacks . | . . . Damage Inflicted 1029 | . 214 815 Guns 285 | . 203 82 Cannons . | . . . Explosions 733 | . . 733 Melee . | . . . Ramming 11 | . 11 . Kinetic 285 | . 203 82 Thermal . | . . . Explosive 733 | . . 733 Electromagnetic . | . . . Impact . | . . . Slashing . | . . . Piercing . | . . . Highest Corruption . | . . . Average Corruption . | . . . Corruption Purged . | . . . Corruption Blocked . | . . . Overload Shots . | . . . Overflow Damage 51 | . . 51 Projectiles . | . . . Explosions 51 | . . 51 Melee . | . . . Knockbacks . | . . . Impact . | . . . Kinetic . | . . . Secondary . | . . . Self-Inflicted Damage 87 | . . 87 Shots 3 | . . 3 Rammed . | . . . Targets Rammed 1 | . 1 . Kicked 1 | . 1 . Crushed . | . . . Highest Temperature 12 | . 12 . Average Temperature 9 | . 9 . Received Heat Transfer 48 | . 48 . Siege Activations . | . . . Robots Corrupted . | . . . Combat Hostiles . | . . . Parts Fried . | . . . Impact Corruptions . | . . . Robots Melted . | . . . Combat Hostiles . | . . . Parts Melted . | . . . Heat Transferred . | . . . Parts Sabotaged . | . . . Parts Stolen . | . . . Parts Stripped . | . . . Power Chain Reactions . | . . . Missiles Intercepted . | . . . Alert | -11 -10 -10 ------- Run | Jun Mat Min Peak Influence 267 | . 117 267 Initial 45 | . . 45 Average 137 | . 64 231 Maximum Alert Level 1 | . . 1 Low Security (%) 64 | . 100 19 Level 1 35 | . . 80 Level 2 . | . . . Level 3 . | . . . Level 4 . | . . . Level 5 . | . . . High Security . | . . . Max Security . | . . . Squads Dispatched 1 | . 1 . Investigation . | . . . Extermination . | . . . Reinforcement 1 | . 1 . Assault . | . . . Garrison . | . . . Intercept . | . . . Searches Triggered . | . . . Construction Impeded . | . . . Haulers Reinforced . | . . . Active Scanning Responses . | . . . Cargo Convoy Interrupts . | . . . Stealth | -11 -10 -10 --------- Run | Jun Mat Min Distress Signals . | . . . Communications Jammed . | . . . Distress Signals . | . . . Times Spotted 14 | . 6 8 Peak Tracking Total 3 | . 3 3 Tactical Retreats . | . . . Traps | -11 -10 -10 ------- Run | Jun Mat Min Traps Triggered . | . . . Indirectly . | . . . Trap Hack Attempts . | . . . Triggered . | . . . Disarmed . | . . . Reprogrammed . | . . . Reused . | . . . Traps Extracted . | . . . Installed . | . . . Triggered . | . . . Machines | -11 -10 -10 ---------- Run | Jun Mat Min Machines Disabled 1 | . . 1 Max in Single Turn 1 | . . 1 Machines Repaired . | . . . Machines Sabotaged . | . . . Overloaded Fab Kills . | . . . Hacking | -11 -10 -10 --------- Run | Jun Mat Min Machines Accessed 2 | . 1 1 Terminals 2 | . 1 1 Fabricators . | . . . Repair Stations . | . . . Recycling Units . | . . . Scanalyzers . | . . . Garrison Access . | . . . Total Hacks 4 | . 2 2 Successful 2 | . 1 1 Failed 2 | . 1 1 Catastrophic 1 | . 1 . Database Lockouts . | . . . Manual 4 | . 2 2 Terminals 4 | . 2 2 Fabricators . | . . . Repair Stations . | . . . Recycling Units . | . . . Scanalyzers . | . . . Garrison Access . | . . . Terminal Hacks 1 | . . 1 Robot Analysis 1 | . . 1 Fabricator Hacks . | . . . Repair Station Hacks . | . . . Recycling Unit Hacks . | . . . Scanalyzer . | . . . Garrison Access Hacks . | . . . Unauthorized Hacks 1 | . 1 . Terminals 1 | . 1 . Botnet 1 | . 1 . Fabricators . | . . . Repair Stations . | . . . Recycling Units . | . . . Scanalyzers . | . . . Garrison Access . | . . . Data Cores Recovered . | . . . Used . | . . . Hacking Detections 2 | . 1 1 Full Trace Events . | . . . Feedback Events . | . . . Feedback Blocked . | . . . Robot Schematics Acquired . | . . . Robots Built . | . . . Authchips . | . . . Time . | . . . Total Robot Build Rating . | . . . Part Schematics Acquired . | . . . Parts Built . | . . . Authchips . | . . . Time . | . . . Total Part Build Rating . | . . . Parts Repaired . | . . . Time . | . . . Parts Recycled . | . . . Recycled Matter . | . . . Retrieved Matter . | . . . Retrieved Components . | . . . Parts Scanalyzed . | . . . Part Schematics Acquired . | . . . Parts Damaged . | . . . Bothacking | -11 -10 -10 ------------ Run | Jun Mat Min Used RIF Installer . | . . . Robots Hacked . | . . . Non-combat . | . . . Combat . | . . . Robot Hacks Applied . | . . . Relay Couplers Released . | . . . Fabnet Peak Effective % . | . . . Robots Rewired . | . . . Allies Hacked . | . . . Hacks Repelled . | . . . Allies | -11 -10 -10 -------- Run | Jun Mat Min Total Allies . | . . . Largest Group . | . . . Highest-Rated Group . | . . . Highest-Rated Ally . | . . . Total Orders . | . . . Ally Attacks . | . . . Total Damage . | . . . Kills . | . . . Allies Corrupted . | . . . Allies Melted . | . . . Intel | -11 -10 -10 ------- Run | Jun Mat Min Robot Analysis Total 1 | . . 1 Derelict Logs Recovered . | . . . Drone Launches . | . . . Drone Recoveries . | . . . Exploration | -11 -10 -10 ------------- Run | Jun Mat Min Turns Passed 502 | . 282 220 Spaces Moved 339 | 1 191 147 Core 5 | . . 5 Treads . | . . . Legs 334 | 1 191 142 Wheels . | . . . Hover . | . . . Flight . | . . . Fastest Speed 50 | 120 120 50 Average Speed 118 | 120 120 117 Slowest Speed 120 | 120 120 120 Overloaded Moves . | . . . Propulsion Burnouts . | . . . Robots Hopped . | . . . Cave-ins Triggered . | . . . Exploration Rate (%) 30 | 2 48 42 Regions Visited 2 Branch Regions 1 Pre-discovered Areas . | . . . Known Exits Taken . | . . . Unknown Exits Taken 2 | 1 1 . Scrap Searched . | . . . Spaces Dug 7 | . . 7 Terrain Destroyed 54 | . . 54 Melee . | . . . Projectile . | . . . AOE 54 | . . 54 Terrain Rammed . | . . . Walls Destroyed . | . . . Machines Disabled . | . . . Actions | -11 -10 -10 --------- Run | Jun Mat Min Total 401 | . 222 179 Wait 11 | . 9 2 Move 337 | . 190 147 Hop . | . . . Pick Up 9 | . 4 5 Fast Attach 1 | . 1 . Attach 1 | . . 1 Detach . | . . . Swap 8 | . 2 6 Drop 9 | . 3 6 Fire 24 | . 12 12 Melee . | . . . Ram . | . . . Kick 1 | . 1 . Crush . | . . . Escape Stasis . | . . . Rewire . | . . . Trap . | . . . Miscellaneous . | . . . Route ------- -11/Junkyard -10/Materials (discovered 2 exits: [*Mat] / *Min) -10/Mines (discovered 1 exit: [*Mat]) History --------- Turn | Location | Event 1 | -11/Junkyard | Discovered new exit (range 0) 1 | -11/Junkyard | Entered Materials 180 | -10/Materials | Discovered new exit (range 15) 262 | -10/Materials | Discovered new exit (range 13) 283 | -10/Materials | Entered Mines 290 | -10/Mines | Received a Rocket Launcher from a helpful Derelict 291 | -10/Mines | Met a Derelict bent on vengeance 468 | -10/Mines | Found a damaged Exp. Sensor Array with a note attached 471 | -10/Mines | Found Prototype Device 490 | -10/Mines | Assembled infested the area 496 | -10/Mines | Core integrity fell below 50% 500 | -10/Mines | Released all parts (5) 501 | -10/Mines | Discovered new exit (range 7) 502 | -10/Mines | Core integrity fell below 20% 503 | -10/Mines | Destroyed by D-53 Grenadier with Mini Grenade Launcher Last Messages --------------- we'll never be afraid of an ambush while sneaking around Materials again, ha." 00471_ Dropped Sml. Laser. 00471_ Acquired Prototype Device. 00490_ ALERT: Infestation in the mines, dispatching Demolisher response squad. 00493_ A derelict is hurriedly installing traps. 00495_ ZX-AZC(g): "Hehe, this'll put a wrench in their mining defense operations..." 00495_ ZX-AZC(g) slips into the shadows. 00495_ K-01 Serf destroyed. 00497_ Heat Sink destroyed. 00499_ The unstable cave ceiling collapses. 00499_ Ion Engine destroyed. 00500_ Released Aluminum Leg. 00500_ Released Sml. Storage Unit. 00500_ Released Assault Rifle. 00500_ Released Aluminum Leg. 00500_ Released Lgt. Assault Rifle. 00501_ EXIT=FOUND Map ----- +----------------------------------------------------+ | ????????????????????????????????????????????????? | | ????????????????????????????????????????????????? | | ????????????????????????????????????????????????? | | ????????????????????????????????????????????????? | | ????????????????????????????????????????????????? | | ??????????????????????###???????????????????????? | | ?????????????????????## ##?????????????????????? | | ?????????????????????# ##????????????????????? | | ?????????????????????# ##???????????????????? | | ?????????????#####????# #???????????????????? | | ????????????## ##????# #??????#????????????? | | ????????##### ###### #????? ###??????????? | | ??????### #?????? ???????????? | | ???#### ####?? ????????????? | | ??## ###### # ### ?#???????????? | | ??# [ ##????## #? #???????????? | | ?## #??????# # #???????????? | | ?# #?????## #???????????? | | ?# ##?????# #???????????? | | ?# ## ###?????## [! ##???????????? | | ?## #### #???????# [ = ##????????????? | | ??## #??## #???????## =[[ #?????????????? | | ???# #???# #???????# ##?????????????? | | ???# #???## ##??????### #??????????????? | | ???# ###### #???##### ##??????????????? | | ???# ## #???# @ d ##???????????????? | | ???# #???## < d #???????????????? | | ???#### #####???# % #???????????????? | | ??????# #????? ###???????????????? | | ??????# ##### ## ### #?????????????????? | | ??????# ##???##### #????????????????? | | ?????## #######????????## #????????????????? | | ?????# #???????????????## ???????????????? | | ?????# #????????????????# ??????????????? | | ?????# #?????????????????# #### ?????????????? | | ?????# ##????????????????? ##????a????????????? | | ?????## ##???????????????? #??????????????????? | | ??????# #???????????????? #??????????????????? | | ??????# ##????????????????!??????????????????? | | ??????# ####????????????????????????????????? | | ??????# ##???????????????????????????????? | | ??????## ##??????????????????????????????? | | ???????#### #??????????????????????????????? | | ??????????# # #?????????????????""???????????? | | ??????????# ## ##????? ??????????""???????????? | | ??????????# ## ##### ?????????? ???????????? | | ??????????# ## ??????????? ???????????? | | ??????????# #? ????????????? #???????????? | | ??????????# ### ???????????# ###?????????? | | ?????????## # #### ??????????# ??????????? | +----------------------------------------------------+ Best States ------------- Heat Dissipation 35 Energy Generation 10 Energy Capacity 250 Matter Stores 300 Matter Capacity 300 Sight Range 16 Terrain Scan Density 10 Evasion (%) 55 Item Schematics ----------------- None Robot Schematics ------------------ None Fabricated ------------ Nothing Alien Tech Used ----------------- None Achievements -------------- None Challenges ------------ None Game ------ Seed ElectronClaymoresBiocell Manual? 0 Play Time 00:05:14 Cumulative 811.1 hours Start 2023.03.04 @ 00:09:26 End 2023.03.04 @ 00:12:52 Sessions 1 Manual Loads 0 Difficulty Rogue Special Mode None Game No. 1231 Rogue 1231 Adventurer 0 Explorer 0 Win Type - Total 77 Types 46/1/13/12/4/0/0/1/0 Lore% 91 Gallery% 91 Achievement% 85 Wizard Run 0 Options --------- ASCII 1 Keyboard 0 Movement Numpad Keybinds 0 Fullscreen 0 Font 14/SmallcapsGlow Map View 76x50 Tactical HUD 1 Map Filters NONE Filters NONE Steam 1 RUN: 70a8ecf9-d097-47e2-9bfe-32689efbd16f